[Event "Late-Titled-Tuesday-Blitz-September-19-2023"]
[Site "Chess.com"]
[Date "2023.09.19"]
[Round "1"]
[White "tgpgoat"]
[Black "maurovargas01"]
[Result "1-0"]
[WhiteElo "2509"]
[BlackElo "1871"]
[TimeControl "180+1"]
[EndTime "14:01:42 PDT"]
[Termination "tgpgoat won by checkmate"]

1. Nf3 {[%clk 0:02:59.8]} 1... Nc6 {[%clk 0:02:57.8]} 2. d4 {[%clk 0:02:55]}
2... d6 {[%clk 0:02:55.8]} 3. g3 {[%clk 0:02:54.9]} 3... e6 {[%clk 0:02:55.9]}
4. Bg2 {[%clk 0:02:53.2]} 4... Rb8 {[%clk 0:02:55.9]} 5. O-O {[%clk 0:02:52.7]}
5... b6 {[%clk 0:02:56.1]} 6. c4 {[%clk 0:02:48.2]} 6... Bb7 {[%clk 0:02:55.9]}
7. Nc3 {[%clk 0:02:46.6]} 7... f5 {[%clk 0:02:54.3]} 8. d5 {[%clk 0:02:46.3]}
8... exd5 {[%clk 0:02:51.1]} 9. cxd5 {[%clk 0:02:47.2]} 9... Ne5 {[%clk
0:02:48.6]} 10. Nxe5 {[%clk 0:02:45]} 10... dxe5 {[%clk 0:02:49.5]} 11. e4
{[%clk 0:02:44.8]} 11... f4 {[%clk 0:02:34.9]} 12. Qh5+ {[%clk 0:02:40.9]} 12...
Kd7 {[%clk 0:02:27.6]} 13. Qxe5 {[%clk 0:02:37.5]} 13... Bd6 {[%clk 0:02:21.1]}
14. Bh3# {[%clk 0:02:36.2]} 1-0

[Event "Late-Titled-Tuesday-Blitz-September-19-2023"]
[Site "Chess.com"]
[Date "2023.09.19"]
[Round "1"]
[White "SlipperySpeedster"]
[Black "TC2304"]
[Result "1-0"]
[WhiteElo "2658"]
[BlackElo "2376"]
[TimeControl "180+1"]
[EndTime "14:02:35 PDT"]
[Termination "SlipperySpeedster won by resignation"]

1. d4 {[%clk 0:02:58.3]} 1... d5 {[%clk 0:02:53.2]} 2. Nf3 {[%clk 0:02:56.7]}
2... Nf6 {[%clk 0:02:53.2]} 3. c3 {[%clk 0:02:56.6]} 3... c6 {[%clk 0:02:49.8]}
4. Bf4 {[%clk 0:02:54.5]} 4... Bf5 {[%clk 0:02:50.2]} 5. e3 {[%clk 0:02:53.7]}
5... e6 {[%clk 0:02:50.8]} 6. Nbd2 {[%clk 0:02:52.4]} 6... Nbd7 {[%clk
0:02:51.3]} 7. Be2 {[%clk 0:02:52]} 7... h6 {[%clk 0:02:51.8]} 8. h3 {[%clk
0:02:51.3]} 8... Be7 {[%clk 0:02:52.2]} 9. O-O {[%clk 0:02:50.7]} 9... O-O
{[%clk 0:02:52.9]} 10. Ne5 {[%clk 0:02:47.1]} 10... Ne4 {[%clk 0:02:51.7]} 11.
Nxd7 {[%clk 0:02:44]} 11... Qxd7 {[%clk 0:02:50.7]} 12. Nf3 {[%clk 0:02:43.2]}
12... Bd6 {[%clk 0:02:47.9]} 13. Ne5 {[%clk 0:02:42.2]} 13... Qc7 {[%clk
0:02:48.3]} 14. g4 {[%clk 0:02:25.3]} 14... Bh7 {[%clk 0:02:47.8]} 15. f3 {[%clk
0:02:25.2]} 15... Nf6 {[%clk 0:02:47.1]} 16. Qe1 {[%clk 0:02:25.7]} 16... Nd7
{[%clk 0:02:47.1]} 17. Qg3 {[%clk 0:02:25.9]} 17... Nxe5 {[%clk 0:02:45.3]} 18.
dxe5 {[%clk 0:02:25.2]} 18... Be7 {[%clk 0:02:45.9]} 19. h4 {[%clk 0:02:23.4]}
19... Qd8 {[%clk 0:02:46]} 20. g5 {[%clk 0:02:22.2]} 20... hxg5 {[%clk
0:02:44.9]} 21. hxg5 {[%clk 0:02:23.1]} 21... Bf5 {[%clk 0:02:44.6]} 22. Rf2
{[%clk 0:02:21.7]} 1-0

[Event "Late-Titled-Tuesday-Blitz-September-19-2023"]
[Site "Chess.com"]
[Date "2023.09.19"]
[Round "1"]
[White "Ready4abattle"]
[Black "IMRosen"]
[Result "0-1"]
[WhiteElo "2321"]
[BlackElo "2595"]
[TimeControl "180+1"]
[EndTime "14:02:48 PDT"]
[Termination "IMRosen won by resignation"]

1. e4 {[%clk 0:03:00.9]} 1... e5 {[%clk 0:02:58.1]} 2. Nf3 {[%clk 0:03:01]} 2...
Nf6 {[%clk 0:02:58.3]} 3. Nxe5 {[%clk 0:02:59.8]} 3... Nc6 {[%clk 0:02:59]} 4.
Nxc6 {[%clk 0:02:55.8]} 4... dxc6 {[%clk 0:02:59.9]} 5. d3 {[%clk 0:02:55.2]}
5... Bc5 {[%clk 0:03:00.4]} 6. Be3 {[%clk 0:02:48.1]} 6... Bxe3 {[%clk
0:03:00.4]} 7. fxe3 {[%clk 0:02:49]} 7... Ng4 {[%clk 0:03:01]} 8. Qe2 {[%clk
0:02:38]} 8... Qg5 {[%clk 0:03:00.7]} 9. Kd2 {[%clk 0:02:35]} 9... Nxh2 {[%clk
0:02:57.1]} 10. Rxh2 {[%clk 0:02:22]} 10... Qe5 {[%clk 0:02:57]} 11. Rh5 {[%clk
0:01:54.8]} 11... Qxb2 {[%clk 0:02:56.2]} 12. Nc3 {[%clk 0:01:53.8]} 12... Qxa1
{[%clk 0:02:55.7]} 13. Re5+ {[%clk 0:01:46.7]} 13... Be6 {[%clk 0:02:52]} 14.
Qg4 {[%clk 0:01:44.2]} 14... Qxf1 {[%clk 0:02:27.4]} 15. Qg3 {[%clk 0:01:42]}
15... O-O-O {[%clk 0:02:21.1]} 16. Ra5 {[%clk 0:01:36.9]} 0-1

[Event "Late-Titled-Tuesday-Blitz-September-19-2023"]
[Site "Chess.com"]
[Date "2023.09.19"]
[Round "1"]
[White "lluiss"]
[Black "koncheto"]
[Result "0-1"]
[WhiteElo "2257"]
[BlackElo "2561"]
[TimeControl "180+1"]
[EndTime "14:03:08 PDT"]
[Termination "koncheto won by resignation"]

1. Nf3 {[%clk 0:02:59.2]} 1... Nf6 {[%clk 0:02:59.8]} 2. d4 {[%clk 0:02:58.1]}
2... e6 {[%clk 0:03:00.2]} 3. g3 {[%clk 0:02:56.1]} 3... c5 {[%clk 0:03:01.1]}
4. c4 {[%clk 0:02:49.8]} 4... cxd4 {[%clk 0:02:59.4]} 5. Qxd4 {[%clk 0:02:50]}
5... Nc6 {[%clk 0:03:00.3]} 6. Qd1 {[%clk 0:02:45.9]} 6... b6 {[%clk 0:03:00.1]}
7. Bg2 {[%clk 0:02:45.9]} 7... Bb7 {[%clk 0:03:01]} 8. O-O {[%clk 0:02:46.1]}
8... Be7 {[%clk 0:03:01.7]} 9. b3 {[%clk 0:02:46.1]} 9... O-O {[%clk 0:03:02.2]}
10. Bb2 {[%clk 0:02:46.6]} 10... d5 {[%clk 0:03:01.3]} 11. cxd5 {[%clk
0:02:45.8]} 11... Nxd5 {[%clk 0:03:02.2]} 12. Nc3 {[%clk 0:02:45.9]} 12... Bf6
{[%clk 0:03:01.7]} 13. Qd2 {[%clk 0:02:42.2]} 13... Nxc3 {[%clk 0:02:58.2]} 14.
Bxc3 {[%clk 0:02:37.3]} 14... Qxd2 {[%clk 0:02:57.4]} 15. Bxd2 {[%clk
0:02:36.4]} 15... Bxa1 {[%clk 0:02:56.9]} 16. Rxa1 {[%clk 0:02:37.3]} 16... Rfd8
{[%clk 0:02:57.3]} 17. Bf4 {[%clk 0:02:35.6]} 17... Nd4 {[%clk 0:02:54.3]} 18.
Nxd4 {[%clk 0:02:29]} 18... Bxg2 {[%clk 0:02:55.2]} 19. Nxe6 {[%clk 0:02:22.7]}
19... fxe6 {[%clk 0:02:53.5]} 20. Kxg2 {[%clk 0:02:22.1]} 20... Rac8 {[%clk
0:02:53.4]} 21. a4 {[%clk 0:02:17.5]} 21... Rc2 {[%clk 0:02:49.9]} 22. Be3
{[%clk 0:02:11.1]} 22... Rb2 {[%clk 0:02:34]} 23. Rc1 {[%clk 0:02:01.6]} 23...
Rxe2 {[%clk 0:02:25.3]} 24. Rc7 {[%clk 0:02:01]} 24... Rd3 {[%clk 0:02:24.6]}
25. Kf3 {[%clk 0:01:59.9]} 25... Ra2 {[%clk 0:02:11.4]} 26. Rxa7 {[%clk
0:01:58.9]} 26... Rxb3 {[%clk 0:02:11.6]} 27. Ra5 {[%clk 0:01:51.9]} 27... bxa5
{[%clk 0:02:10.5]} 0-1

[Event "Late-Titled-Tuesday-Blitz-September-19-2023"]
[Site "Chess.com"]
[Date "2023.09.19"]
[Round "1"]
[White "floplover"]
[Black "Tomytoteph"]
[Result "0-1"]
[WhiteElo "2266"]
[BlackElo "2576"]
[TimeControl "180+1"]
[EndTime "14:03:24 PDT"]
[Termination "Tomytoteph won by resignation"]

1. d4 {[%clk 0:02:59.7]} 1... Nf6 {[%clk 0:02:58.5]} 2. c4 {[%clk 0:03:00.1]}
2... e6 {[%clk 0:02:59.4]} 3. Nc3 {[%clk 0:03:00.5]} 3... Bb4 {[%clk 0:02:59.5]}
4. Qc2 {[%clk 0:03:00.8]} 4... O-O {[%clk 0:02:59.4]} 5. e4 {[%clk 0:02:58.2]}
5... d5 {[%clk 0:02:59]} 6. e5 {[%clk 0:02:57.9]} 6... Ne4 {[%clk 0:02:58.9]} 7.
Bd3 {[%clk 0:02:58.1]} 7... c5 {[%clk 0:02:59]} 8. Nf3 {[%clk 0:02:58.2]} 8...
cxd4 {[%clk 0:02:58.9]} 9. Nxd4 {[%clk 0:02:57.6]} 9... f5 {[%clk 0:02:57.6]}
10. exf6 {[%clk 0:02:44.8]} 10... Qxf6 {[%clk 0:02:57.2]} 11. Be3 {[%clk
0:02:29.6]} 11... e5 {[%clk 0:02:47.4]} 12. Nf3 {[%clk 0:01:50.7]} 12... Nxc3
{[%clk 0:02:28]} 13. bxc3 {[%clk 0:01:49.4]} 13... e4 {[%clk 0:02:28.5]} 14. Bd4
{[%clk 0:01:09]} 14... exd3 {[%clk 0:02:26.7]} 0-1

[Event "Late-Titled-Tuesday-Blitz-September-19-2023"]
[Site "Chess.com"]
[Date "2023.09.19"]
[Round "1"]
[White "Beca95"]
[Black "kreonx"]
[Result "1-0"]
[WhiteElo "2848"]
[BlackElo "2474"]
[TimeControl "180+1"]
[EndTime "14:03:34 PDT"]
[Termination "Beca95 won by checkmate"]

1. d4 {[%clk 0:03:00.9]} 1... Nf6 {[%clk 0:02:58.9]} 2. Bg5 {[%clk 0:02:57.3]}
2... d5 {[%clk 0:02:57.1]} 3. Nd2 {[%clk 0:02:55.2]} 3... e6 {[%clk 0:02:56.1]}
4. e4 {[%clk 0:02:53.5]} 4... dxe4 {[%clk 0:02:54.4]} 5. Nxe4 {[%clk 0:02:52.8]}
5... Be7 {[%clk 0:02:53.7]} 6. Bxf6 {[%clk 0:02:51.9]} 6... Bxf6 {[%clk
0:02:53.7]} 7. Nf3 {[%clk 0:02:52.2]} 7... O-O {[%clk 0:02:52]} 8. c3 {[%clk
0:02:52.4]} 8... g6 {[%clk 0:02:52.4]} 9. Bd3 {[%clk 0:02:52.3]} 9... Bg7 {[%clk
0:02:52.9]} 10. h4 {[%clk 0:02:52.5]} 10... h5 {[%clk 0:02:52.2]} 11. Qe2 {[%clk
0:02:51.7]} 11... b6 {[%clk 0:02:49.6]} 12. O-O-O {[%clk 0:02:51.5]} 12... Bb7
{[%clk 0:02:50.2]} 13. Ne5 {[%clk 0:02:48.2]} 13... Nd7 {[%clk 0:02:49.3]} 14.
f4 {[%clk 0:02:47.7]} 14... Nxe5 {[%clk 0:02:49.2]} 15. dxe5 {[%clk 0:02:45.4]}
15... Qe7 {[%clk 0:02:48.4]} 16. g4 {[%clk 0:02:44.5]} 16... hxg4 {[%clk
0:02:40.4]} 17. h5 {[%clk 0:02:44.3]} 17... gxh5 {[%clk 0:02:41]} 18. Rxh5
{[%clk 0:02:39]} 18... Rfd8 {[%clk 0:02:40.1]} 19. Rg1 {[%clk 0:02:11.6]} 19...
Kf8 {[%clk 0:02:27.5]} 20. Rxg4 {[%clk 0:02:06.9]} 20... Qd7 {[%clk 0:02:25.2]}
21. Bc2 {[%clk 0:02:03.1]} 21... Qd5 {[%clk 0:02:21]} 22. Rh7 {[%clk 0:01:52.8]}
22... Qxa2 {[%clk 0:02:14.1]} 23. Rgxg7 {[%clk 0:01:49]} 23... Qa1+ {[%clk
0:02:10.2]} 24. Bb1 {[%clk 0:01:47.9]} 24... Rd7 {[%clk 0:02:09.1]} 25. Nf6
{[%clk 0:01:37.7]} 25... Rad8 {[%clk 0:02:07.8]} 26. Rg8+ {[%clk 0:01:33.5]}
26... Ke7 {[%clk 0:02:07.7]} 27. Rxf7+ {[%clk 0:01:33.5]} 27... Kxf7 {[%clk
0:02:07.6]} 28. Qh5+ {[%clk 0:01:33.7]} 28... Ke7 {[%clk 0:02:07]} 29. Qh7#
{[%clk 0:01:33.4]} 1-0

[Event "Late-Titled-Tuesday-Blitz-September-19-2023"]
[Site "Chess.com"]
[Date "2023.09.19"]
[Round "1"]
[White "KaydenTroffChess"]
[Black "GiorgianBarbosa"]
[Result "1-0"]
[WhiteElo "2785"]
[BlackElo "2453"]
[TimeControl "180+1"]
[EndTime "14:03:53 PDT"]
[Termination "KaydenTroffChess won by resignation"]

1. d4 {[%clk 0:02:52.5]} 1... Nf6 {[%clk 0:02:52.6]} 2. Nf3 {[%clk 0:02:52.7]}
2... e6 {[%clk 0:02:53.5]} 3. Bf4 {[%clk 0:02:52.8]} 3... c5 {[%clk 0:02:52.5]}
4. e3 {[%clk 0:02:53]} 4... b6 {[%clk 0:02:52.5]} 5. Nbd2 {[%clk 0:02:51.5]}
5... Bb7 {[%clk 0:02:52.6]} 6. Nc4 {[%clk 0:02:51.2]} 6... d5 {[%clk 0:02:39.5]}
7. Nce5 {[%clk 0:02:50.5]} 7... Nfd7 {[%clk 0:02:39.9]} 8. Bb5 {[%clk
0:02:48.2]} 8... Be7 {[%clk 0:02:37.3]} 9. Nxd7 {[%clk 0:02:44.7]} 9... Nxd7
{[%clk 0:02:38.2]} 10. Ne5 {[%clk 0:02:45]} 10... Bc8 {[%clk 0:02:37.4]} 11. Nc6
{[%clk 0:02:42.8]} 11... e5 {[%clk 0:02:10.9]} 12. Nxd8 {[%clk 0:02:23.2]} 12...
exf4 {[%clk 0:02:09.7]} 13. Nc6 {[%clk 0:02:21.4]} 13... Bf6 {[%clk 0:02:07.5]}
14. Ne5 {[%clk 0:02:19.5]} 14... fxe3 {[%clk 0:02:04.2]} 15. fxe3 {[%clk
0:02:17.8]} 15... c4 {[%clk 0:01:53.1]} 16. Qg4 {[%clk 0:02:08.5]} 16... Bxe5
{[%clk 0:01:48.6]} 17. dxe5 {[%clk 0:02:08.2]} 17... a6 {[%clk 0:01:37.1]} 18.
Bc6 {[%clk 0:02:05.1]} 18... Ra7 {[%clk 0:01:34.5]} 19. Qxg7 {[%clk 0:02:04.8]}
19... Rf8 {[%clk 0:01:34.5]} 20. O-O {[%clk 0:02:04]} 20... Rc7 {[%clk
0:01:33.1]} 21. Bxd5 {[%clk 0:01:50.9]} 21... Rc5 {[%clk 0:01:30.4]} 22. Bxf7+
{[%clk 0:01:49.7]} 22... Rxf7 {[%clk 0:01:27.3]} 23. Qxf7+ {[%clk 0:01:47.9]}
23... Kd8 {[%clk 0:01:25.3]} 24. e6 {[%clk 0:01:48.1]} 1-0

[Event "Late-Titled-Tuesday-Blitz-September-19-2023"]
[Site "Chess.com"]
[Date "2023.09.19"]
[Round "1"]
[White "Cipy77"]
[Black "SpeedofLight0"]
[Result "0-1"]
[WhiteElo "2505"]
[BlackElo "3091"]
[TimeControl "180+1"]
[EndTime "14:04:00 PDT"]
[Termination "SpeedofLight0 won by resignation"]

1. e4 {[%clk 0:02:59.6]} 1... d6 {[%clk 0:02:55]} 2. Nc3 {[%clk 0:02:57.4]} 2...
Nf6 {[%clk 0:02:53.4]} 3. g3 {[%clk 0:02:56.2]} 3... c5 {[%clk 0:02:50.9]} 4.
Bg2 {[%clk 0:02:56.4]} 4... Nc6 {[%clk 0:02:51.7]} 5. d3 {[%clk 0:02:53.6]} 5...
g6 {[%clk 0:02:50.7]} 6. Be3 {[%clk 0:02:53.5]} 6... Bg7 {[%clk 0:02:50]} 7. h3
{[%clk 0:02:53.6]} 7... O-O {[%clk 0:02:48]} 8. Qd2 {[%clk 0:02:54.2]} 8... Rb8
{[%clk 0:02:47.7]} 9. a4 {[%clk 0:02:53.4]} 9... a6 {[%clk 0:02:47]} 10. f4
{[%clk 0:02:50]} 10... e5 {[%clk 0:02:45.2]} 11. Nd5 {[%clk 0:02:44.7]} 11...
Nxd5 {[%clk 0:02:44.1]} 12. exd5 {[%clk 0:02:44.9]} 12... Nd4 {[%clk 0:02:44.8]}
13. Ne2 {[%clk 0:02:35.7]} 13... Nxe2 {[%clk 0:02:37.5]} 14. Qxe2 {[%clk
0:02:32.7]} 14... exf4 {[%clk 0:02:37.3]} 15. gxf4 {[%clk 0:02:30.3]} 15... Re8
{[%clk 0:02:31.3]} 16. c3 {[%clk 0:02:23.2]} 16... b5 {[%clk 0:02:23.8]} 17.
axb5 {[%clk 0:02:22.1]} 17... axb5 {[%clk 0:02:24.7]} 18. O-O {[%clk 0:02:21.5]}
18... b4 {[%clk 0:02:25]} 19. Qd2 {[%clk 0:01:56.5]} 19... bxc3 {[%clk
0:02:23.8]} 20. bxc3 {[%clk 0:01:57.4]} 20... Rb3 {[%clk 0:02:16.6]} 21. d4
{[%clk 0:01:50.5]} 21... Rxe3 {[%clk 0:01:54.5]} 22. Qxe3 {[%clk 0:01:48.5]}
22... Bxd4 {[%clk 0:01:54.2]} 23. cxd4 {[%clk 0:01:33.8]} 23... Rxe3 {[%clk
0:01:53.8]} 24. dxc5 {[%clk 0:01:34.2]} 24... dxc5 {[%clk 0:01:54.1]} 25. Ra8
{[%clk 0:01:34.4]} 25... Re2 {[%clk 0:01:50.8]} 26. Rb1 {[%clk 0:01:26.4]} 26...
Rxg2+ {[%clk 0:01:48]} 27. Kxg2 {[%clk 0:01:21.3]} 27... Qxd5+ {[%clk
0:01:47.7]} 0-1

[Event "Late-Titled-Tuesday-Blitz-September-19-2023"]
[Site "Chess.com"]
[Date "2023.09.19"]
[Round "1"]
[White "Young_Catalan_Player09"]
[Black "maciek_92"]
[Result "0-1"]
[WhiteElo "2434"]
[BlackElo "2728"]
[TimeControl "180+1"]
[EndTime "14:04:01 PDT"]
[Termination "maciek_92 won by resignation"]

1. Nf3 {[%clk 0:02:59.1]} 1... Nf6 {[%clk 0:02:58.9]} 2. c4 {[%clk 0:02:53.2]}
2... e6 {[%clk 0:02:57.3]} 3. g3 {[%clk 0:02:53.1]} 3... b6 {[%clk 0:02:57.8]}
4. Bg2 {[%clk 0:02:52.8]} 4... Bb7 {[%clk 0:02:58.3]} 5. O-O {[%clk 0:02:53.5]}
5... Be7 {[%clk 0:02:57.5]} 6. d4 {[%clk 0:02:53.7]} 6... O-O {[%clk 0:02:58.3]}
7. Nc3 {[%clk 0:02:54.2]} 7... Ne4 {[%clk 0:02:59]} 8. Bd2 {[%clk 0:02:54.8]}
8... d5 {[%clk 0:02:59.1]} 9. Ne5 {[%clk 0:02:51.8]} 9... Nd7 {[%clk 0:02:56.5]}
10. Nxd7 {[%clk 0:02:46.2]} 10... Qxd7 {[%clk 0:02:57.4]} 11. Nxe4 {[%clk
0:02:37.1]} 11... dxe4 {[%clk 0:02:57.6]} 12. Be3 {[%clk 0:02:37.4]} 12... f5
{[%clk 0:02:48.9]} 13. Qd2 {[%clk 0:02:36.6]} 13... Bf6 {[%clk 0:02:47]} 14.
Rfd1 {[%clk 0:02:36.2]} 14... Rad8 {[%clk 0:02:47.6]} 15. Rac1 {[%clk
0:02:34.4]} 15... Qe7 {[%clk 0:02:44.4]} 16. Qc2 {[%clk 0:02:28.1]} 16... g5
{[%clk 0:02:38.9]} 17. c5 {[%clk 0:02:21]} 17... Bd5 {[%clk 0:02:39]} 18. cxb6
{[%clk 0:02:18.3]} 18... cxb6 {[%clk 0:02:39.9]} 19. b3 {[%clk 0:02:17.7]} 19...
Rd7 {[%clk 0:02:32.9]} 20. Qb2 {[%clk 0:02:07.1]} 20... Rfd8 {[%clk 0:02:24.4]}
21. Rd2 {[%clk 0:02:02.4]} 21... Qg7 {[%clk 0:02:22.6]} 22. Rcd1 {[%clk
0:02:01.7]} 22... f4 {[%clk 0:02:20.4]} 23. gxf4 {[%clk 0:01:14.3]} 23... gxf4
{[%clk 0:02:21.3]} 24. Bxf4 {[%clk 0:01:14]} 24... e3 {[%clk 0:02:21.1]} 25. Bg3
{[%clk 0:00:57.1]} 25... exd2 {[%clk 0:02:17.8]} 0-1

[Event "Late-Titled-Tuesday-Blitz-September-19-2023"]
[Site "Chess.com"]
[Date "2023.09.19"]
[Round "1"]
[White "Pingah9"]
[Black "campochess"]
[Result "1-0"]
[WhiteElo "2524"]
[BlackElo "2159"]
[TimeControl "180+1"]
[EndTime "14:04:04 PDT"]
[Termination "Pingah9 won by resignation"]

1. e4 {[%clk 0:02:59.7]} 1... c5 {[%clk 0:02:59.3]} 2. Nc3 {[%clk 0:02:59.2]}
2... Nc6 {[%clk 0:02:58.9]} 3. g3 {[%clk 0:02:59.7]} 3... g6 {[%clk 0:02:59]} 4.
Bg2 {[%clk 0:03:00.2]} 4... Bg7 {[%clk 0:02:59.1]} 5. d3 {[%clk 0:03:00.9]} 5...
d6 {[%clk 0:02:59.1]} 6. Be3 {[%clk 0:03:01.2]} 6... Nf6 {[%clk 0:02:59]} 7. h3
{[%clk 0:03:01.5]} 7... Nd7 {[%clk 0:02:57.9]} 8. Qd2 {[%clk 0:03:01.5]} 8... h5
{[%clk 0:02:56.7]} 9. Nge2 {[%clk 0:03:00.9]} 9... Rb8 {[%clk 0:02:54.2]} 10. a4
{[%clk 0:02:55.9]} 10... b6 {[%clk 0:02:49.2]} 11. d4 {[%clk 0:02:48.6]} 11...
cxd4 {[%clk 0:02:48.3]} 12. Nxd4 {[%clk 0:02:49.5]} 12... Nde5 {[%clk
0:02:47.3]} 13. b3 {[%clk 0:02:46.7]} 13... Bb7 {[%clk 0:02:36.1]} 14. f4 {[%clk
0:02:40]} 14... Nd7 {[%clk 0:02:33.6]} 15. O-O {[%clk 0:02:37.9]} 15... O-O
{[%clk 0:02:31.8]} 16. Nde2 {[%clk 0:02:30.9]} 16... Nc5 {[%clk 0:02:31]} 17.
Rae1 {[%clk 0:02:27]} 17... e5 {[%clk 0:02:28.7]} 18. f5 {[%clk 0:02:24.4]}
18... Rc8 {[%clk 0:02:12.4]} 19. Bh6 {[%clk 0:02:21.2]} 19... Bxh6 {[%clk
0:02:04]} 20. Qxh6 {[%clk 0:02:22.1]} 20... Qf6 {[%clk 0:02:00.4]} 21. Nd5
{[%clk 0:02:20.7]} 21... Qg7 {[%clk 0:02:00]} 22. Qg5 {[%clk 0:02:11.1]} 22...
Nd4 {[%clk 0:01:53.1]} 23. Ne7+ {[%clk 0:02:03.5]} 23... Kh8 {[%clk 0:01:48.4]}
24. Nxd4 {[%clk 0:01:59.3]} 24... exd4 {[%clk 0:01:44.8]} 25. fxg6 {[%clk
0:01:55.4]} 25... Ne6 {[%clk 0:01:18.8]} 26. Qxh5+ {[%clk 0:01:51.5]} 1-0

[Event "Late-Titled-Tuesday-Blitz-September-19-2023"]
[Site "Chess.com"]
[Date "2023.09.19"]
[Round "1"]
[White "KacperPolOK"]
[Black "ahkashefi2800"]
[Result "1-0"]
[WhiteElo "2409"]
[BlackElo "2621"]
[TimeControl "180+1"]
[EndTime "14:04:17 PDT"]
[Termination "KacperPolOK won by resignation"]

1. e4 {[%clk 0:02:59]} 1... c6 {[%clk 0:02:57.8]} 2. d4 {[%clk 0:02:57.4]} 2...
d5 {[%clk 0:02:57.6]} 3. e5 {[%clk 0:02:58]} 3... Bf5 {[%clk 0:02:47.7]} 4. h4
{[%clk 0:02:54.4]} 4... h5 {[%clk 0:02:40.3]} 5. Bd3 {[%clk 0:02:54.4]} 5...
Bxd3 {[%clk 0:02:36.3]} 6. Qxd3 {[%clk 0:02:55.3]} 6... e6 {[%clk 0:02:36.1]} 7.
Bg5 {[%clk 0:02:45.4]} 7... Qa5+ {[%clk 0:02:34.7]} 8. Nd2 {[%clk 0:02:44.8]}
8... Qa6 {[%clk 0:02:33.7]} 9. c4 {[%clk 0:02:43.9]} 9... Bb4 {[%clk 0:02:26.6]}
10. b3 {[%clk 0:02:40]} 10... Ne7 {[%clk 0:02:26.4]} 11. Bxe7 {[%clk 0:02:40]}
11... Bxe7 {[%clk 0:02:25.7]} 12. Ngf3 {[%clk 0:02:40]} 12... Nd7 {[%clk
0:02:20.8]} 13. O-O {[%clk 0:02:36.8]} 13... Nf8 {[%clk 0:02:04.6]} 14. g3
{[%clk 0:02:28.4]} 14... Rh6 {[%clk 0:01:43.8]} 15. Qe3 {[%clk 0:02:17.6]} 15...
Rg6 {[%clk 0:01:42.8]} 16. Rfc1 {[%clk 0:02:15.5]} 16... Qa5 {[%clk 0:01:32.1]}
17. a3 {[%clk 0:02:11.9]} 17... Qd8 {[%clk 0:01:21.5]} 18. Kh2 {[%clk
0:02:09.7]} 18... Rg4 {[%clk 0:01:18.3]} 19. b4 {[%clk 0:02:07.5]} 19... g5
{[%clk 0:01:04.4]} 20. hxg5 {[%clk 0:02:04.3]} 20... Ng6 {[%clk 0:01:02.8]} 21.
b5 {[%clk 0:02:02.6]} 21... cxb5 {[%clk 0:00:49.8]} 22. cxd5 {[%clk 0:01:56.1]}
22... Qxd5 {[%clk 0:00:48.1]} 1-0

[Event "Late-Titled-Tuesday-Blitz-September-19-2023"]
[Site "Chess.com"]
[Date "2023.09.19"]
[Round "1"]
[White "Chemim21"]
[Black "MFatigue"]
[Result "0-1"]
[WhiteElo "2250"]
[BlackElo "2554"]
[TimeControl "180+1"]
[EndTime "14:04:26 PDT"]
[Termination "MFatigue won by resignation"]

1. e4 {[%clk 0:02:54.7]} 1... e6 {[%clk 0:03:00.2]} 2. d4 {[%clk 0:02:54.1]}
2... d5 {[%clk 0:03:00.7]} 3. Nc3 {[%clk 0:02:54.1]} 3... Nf6 {[%clk 0:03:01.2]}
4. e5 {[%clk 0:02:49.7]} 4... Nfd7 {[%clk 0:03:01.3]} 5. f4 {[%clk 0:02:49.7]}
5... c5 {[%clk 0:03:01.8]} 6. Nf3 {[%clk 0:02:49.9]} 6... Nc6 {[%clk 0:03:02.5]}
7. Be3 {[%clk 0:02:49.8]} 7... a6 {[%clk 0:03:03.1]} 8. Qd2 {[%clk 0:02:49.8]}
8... b5 {[%clk 0:03:03.7]} 9. Qf2 {[%clk 0:02:17.6]} 9... Qb6 {[%clk 0:03:01.7]}
10. g4 {[%clk 0:02:10.5]} 10... cxd4 {[%clk 0:02:38.2]} 11. Bxd4 {[%clk
0:02:04.9]} 11... Bc5 {[%clk 0:02:38.7]} 12. Bxc5 {[%clk 0:02:03.7]} 12... Nxc5
{[%clk 0:02:34.9]} 13. O-O-O {[%clk 0:01:41.4]} 13... b4 {[%clk 0:02:33.4]} 14.
Nxd5 {[%clk 0:00:55.2]} 14... Nd3+ {[%clk 0:02:16.9]} 15. Rxd3 {[%clk
0:00:49.7]} 15... Qxf2 {[%clk 0:02:17.2]} 16. Nc7+ {[%clk 0:00:49.5]} 16... Ke7
{[%clk 0:02:17.6]} 17. Nxa8 {[%clk 0:00:49.1]} 17... Rd8 {[%clk 0:02:04.5]} 0-1